fUSD/lending_fUSD_20260402
["ID","MTS","AMOUNT","RATE_DAILY","PERIOD"]
[419321007,1775161285873,-500.0,0.00046701,120]
[419321008,1775161285924,-151.0,0.00046701,30]
[419321009,1775161285975,-183.19,0.00046701,30]
[419321010,1775161286026,-390.89,0.00046701,30]
[419321011,1775161286076,-480.67,0.00046701,30]
[419321012,1775161286127,-151.0,0.00046701,30]
[419321013,1775161286179,-151.0,0.00046701,30]
[419321014,1775161286231,-151.0,0.00046701,30]
[419321015,1775161286281,-1564.23,0.00046701,30]
[419321016,1775161286335,-151.0,0.00046701,30]
[419321017,1775161286383,-151.0,0.00046701,30]
[419321018,1775161286432,-1564.23,0.00046701,30]
[419321019,1775161286483,-183.19,0.00046701,30]
[419321020,1775161286532,-151.0,0.00046701,30]
[419321021,1775161286582,-637.33,0.00046701,30]
[419321022,1775161286633,-567.02,0.00046701,30]
[419321023,1775161286684,-151.0,0.00046701,30]
[419321024,1775161286735,-1564.23,0.00046701,30]
[419321025,1775161286785,-151.0,0.00046701,30]
[419321026,1775161287065,-151.0,0.00046701,30]
[419321027,1775161287115,-477.21,0.00046701,30]
[419321028,1775161287163,-1564.23,0.00046701,30]
[419321029,1775161287210,-216.02,0.00046701,30]
[419321030,1775161287260,-151.0,0.00046701,30]
[419321031,1775161287312,-1564.23,0.00046701,30]
[419321032,1775161287363,-151.0,0.00046701,30]
[419321033,1775161287412,-477.3,0.00046701,30]
[419321034,1775161287461,-151.0,0.00046701,30]
[419321035,1775161287511,-183.19,0.00046701,30]
[419321036,1775161287561,-1564.23,0.00046701,30]
[419321037,1775161287611,-151.0,0.00046701,30]
[419321038,1775161287659,-151.0,0.00046701,30]
[419321039,1775161287708,-486.92,0.00046701,30]
[419321040,1775161287758,-637.33,0.00046701,30]
[419321041,1775161287806,-569.32,0.00046701,30]
[419321042,1775161287855,-1564.23,0.00046701,30]
[419321043,1775161287906,-477.3,0.00046701,30]
[419321044,1775161287955,-151.0,0.00046701,30]
[419321045,1775161288005,-567.14,0.00046701,30]
[419321046,1775161288054,-151.0,0.00046701,30]
[419321047,1775161288103,-637.33,0.00046701,30]
[419321048,1775161288154,-1564.23,0.00046701,30]
[419321049,1775161288203,-151.0,0.00046701,30]
[419321050,1775161288252,-637.22,0.00046701,30]
[419321051,1775161288301,-180.41,0.00046701,30]
[419321052,1775161288351,-183.19,0.00046701,30]
[419321053,1775161288399,-1564.23,0.00046701,30]
[419321054,1775161288448,-151.0,0.00046701,30]
[419321055,1775161288498,-477.3,0.00046701,30]
[419321056,1775161288548,-151.0,0.00046701,30]
[419321057,1775161288599,-183.18,0.00046701,30]
[419321058,1775161288654,-569.44,0.00046701,30]
[419321059,1775161288706,-183.19,0.00046701,30]
[419321060,1775161288760,-571.0,0.00046701,30]
[419321061,1775161288812,-569.32,0.00046701,30]
[419321062,1775161288863,-1564.23,0.00046701,30]
[419321063,1775161288917,-151.0,0.00046701,30]
[419321064,1775161288975,-151.4,0.00046701,30]
[419321065,1775161289037,-477.23,0.00046701,30]
[419321066,1775161289095,-391.47,0.00046701,30]
[419321067,1775161289152,-151.37,0.00046701,30]
[419321068,1775161289208,-1564.23,0.00046701,30]
[419321069,1775161289261,-151.0,0.00046701,30]
[419321070,1775161289312,-477.06,0.00046701,30]
[419321071,1775161289366,-391.54,0.00046701,30]
[419321072,1775161289426,-151.0,0.00046701,30]
[419321073,1775161289480,-1564.23,0.00046701,30]
[419321074,1775161289531,-477.3,0.00046701,30]
[419321075,1775161289585,-566.68,0.00046701,30]
[419321076,1775161289638,-151.79,0.00046701,30]
[419321077,1775161289688,-151.0,0.00046701,30]
[419321078,1775161289739,-183.18,0.00046701,30]
[419321079,1775161289788,-151.0,0.00046701,30]
[419321080,1775161289840,-582.29,0.00046701,30]
[419321081,1775161289890,-1564.23,0.00046701,30]
[419321082,1775161289946,-978.1821838,0.00046701,120]
[419321083,1775161289998,-425.7827761,0.00046701,120]
[419321084,1775161290049,-161.7497088,0.00046701,120]
[419321085,1775161290099,-500.0,0.00046701,120]
[419321086,1775161290147,-151.0,0.00046701,30]
[419321087,1775161290197,-151.0,0.00046701,30]
[419321088,1775161290244,-183.16,0.00046701,30]
[419321089,1775161290291,-157.26,0.00046701,30]
[419321090,1775161290337,-1564.23,0.00046701,30]
[419321091,1775161290384,-438.3217113,0.00046701,120]
[419321092,1775161290433,-151.0,0.00046701,30]
[419321093,1775161290480,-500.0,0.00046701,120]
[419321094,1775161290530,-537.2584271,0.00046701,120]
[419321095,1775161290577,-151.0,0.00046701,30]
[419321096,1775161290626,-637.07,0.00046701,30]
[419321097,1775161290674,-391.54,0.00046701,30]
[419321098,1775161290723,-477.26,0.00046701,30]
[419321099,1775161290771,-188.8886881,0.00046701,120]
[419321100,1775161290820,-615.536385,0.00046701,120]
[419321101,1775161290870,-151.0,0.00046701,30]
[419321102,1775161290922,-1564.23,0.00046701,30]
[419321103,1775161290972,-462.92,0.00046701,30]
[419321104,1775161291023,-567.24,0.00046701,30]
[419321105,1775161291080,-4000.0,0.00046701,31]
[419321106,1775161291130,-183.19,0.00046701,30]
[419321107,1775161291177,-151.0,0.00046701,30]
[419321108,1775161291226,-391.18,0.00046701,30]
[419321109,1775161291275,-389.37,0.00046701,30]
[419321110,1775161291324,-477.3,0.00046701,30]
[419321111,1775161291371,-1564.23,0.00046701,30]
[419321112,1775161291417,-151.0,0.00046701,30]
[419321113,1775161291464,-569.44,0.00046701,30]
[419321114,1775161291511,-151.0,0.00046701,30]
[419321115,1775161291559,-151.0,0.00046701,30]
[419321116,1775161291609,-1564.23,0.00046701,30]
[419321117,1775161291662,-183.94,0.00046701,30]
[419321118,1775161291712,-477.26,0.00046701,30]
[419321119,1775161291761,-183.17,0.00046701,30]
[419321120,1775161291810,-151.0,0.00046701,30]
[419321121,1775161291861,-567.24,0.00046701,30]
[419321122,1775161291910,-1564.23,0.00046701,30]
[419321123,1775161291958,-151.0,0.00046701,120]
[419321124,1775161292007,-165.471179,0.00046701,120]
[419321125,1775161292056,-151.0,0.00046701,30]
[419321126,1775161292104,-391.54,0.00046701,30]
[419321127,1775161292150,-1564.23,0.00046701,30]
[419321128,1775161292200,-477.26,0.00046701,30]
[419321129,1775161292247,-151.0,0.00046701,30]
[419321130,1775161292292,-183.18,0.00046701,30]
[419321131,1775161292339,-3406290.39908906,0.00046701,30]
[419321149,1775161831524,-293.06,0.00012181,2]
[419321150,1775161831534,-530.581,0.0001259,2]
[419321151,1775161831631,-69.419,0.0001259,2]
[419321152,1775161831640,-250.0,0.00013,2]
[419321153,1775161831651,-503.0,0.00013111,2]
[419321154,1775161831660,-600.0,0.00013114,2]
[419321155,1775161831670,-166.64528262,0.00013114,2]
[419321156,1775161831679,-600.0,0.00013399,2]
[419321157,1775161831690,-166.66,0.00013699,2]
[419321158,1775161831699,-170.67306117,0.00013699,2]
[419321159,1775161831709,-150.0,0.00013902,2]
[419321160,1775161831718,-166.66,0.00013911,2]
[419321161,1775161831727,-1121.1704447,0.00014088,2]
[419321168,1775161837865,-500.0,0.00014088,2]
[419321169,1775161837963,-146.7295553,0.00014088,2]
[419321170,1775161837973,-166.66,0.00014124,2]
[419321171,1775161837983,-166.66,0.00014337,2]
[419321172,1775161837994,-396.61291239,0.00014379,2]
[419321173,1775161838004,-1200.0,0.00014399,2]
[419321174,1775161838014,-300.0,0.00014399,2]
[419321175,1775161838024,-150.0,0.000144,2]
[419321176,1775161838034,-150.0,0.000144,2]
[419321177,1775161838044,-150.0,0.000144,2]
[419321178,1775161838054,-238.66948473,0.000144,2]
[419321179,1775161838064,-150.00000001,0.000144,2]
[419321180,1775161838074,-150.0,0.000144,2]
[419321181,1775161838084,-150.0,0.000144,2]
[419321182,1775161838094,-249.0,0.00014414,2]
[419321183,1775161838105,-966.41894624,0.00014476,2]
[419321185,1775161840078,-533.58105376,0.00014476,2]
[419321186,1775161840090,-200.0,0.0001452,2]
[419321187,1775161840100,-1600.0,0.00014536,2]
[419321188,1775161840111,-166.66,0.0001455,2]
[419321189,1775161840121,-500.0,0.000146,2]
[419321190,1775161840131,-500.0,0.00014667,2]
[419321191,1775161840142,-500.0,0.00014667,2]
[419321192,1775161840153,-500.0,0.00014667,2]
[419321193,1775161840164,-421.67237584,0.00014667,2]
[419321194,1775161840174,-500.0,0.00014667,2]
[419321195,1775161840185,-500.0,0.00014667,2]
[419321196,1775161840197,-500.0,0.00014667,2]
[419321197,1775161840207,-166.66,0.00014763,2]
[419321198,1775161840218,-500.0,0.000148,2]
[419321199,1775161840228,-150.0,0.00014933,2]
[419321200,1775161840238,-150.0,0.00015,2]
[419321201,1775161840249,-300.0,0.00015,2]
[419321202,1775161840258,-300.0,0.00015,2]
[419321203,1775161840268,-800.0,0.00015068,2]
[419321204,1775161840277,-1000.0,0.00015148,2]
[419321205,1775161840287,-10000.0,0.00015205,2]
[419321206,1775161840296,-500.0,0.00015215,2]
[419321207,1775161840306,-1000.0,0.00015215,2]
[419321208,1775161840316,-174.02,0.00015292,2]
[419321209,1775161840325,-150.0,0.00015467,2]
[419321210,1775161840335,-200.8,0.00015507,2]
[419321211,1775161840345,-1700.0,0.000156,5]
[419321212,1775161840355,-3400.0,0.000157,5]
[419321213,1775161840365,-611.94845348,0.000157,2]
[419321214,1775161840374,-420.0,0.00015769,2]
[419321215,1775161840384,-10965.8899,0.000158,2]
[419321216,1775161840394,-10793.3039687,0.000158,2]
[419321217,1775161840403,-5100.0,0.000158,5]
[419321218,1775161840413,-174099.9674,0.000158,2]
[419321219,1775161840423,-22702.42456506,0.000158,2]
[419321220,1775161840433,-408.14719163,0.000158,2]
[419321221,1775161840442,-532.9299,0.00015816,2]
[419321222,1775161840453,-1680.0,0.00015839,2]
[419321223,1775161840462,-500.0,0.00015873,2]
[419321224,1775161840472,-2000.0,0.0001589,2]
[419321225,1775161840482,-151.0,0.0001589,2]
[419321226,1775161840492,-151.0,0.0001589,2]
[419321227,1775161840502,-151.0,0.0001589,2]
[419321228,1775161840641,-151.0,0.0001589,2]
[419321229,1775161840651,-151.0,0.0001589,2]
[419321230,1775161840660,-151.0,0.0001589,2]
[419321231,1775161840670,-151.0,0.0001589,2]
[419321232,1775161840679,-151.0,0.0001589,2]
[419321233,1775161840688,-151.0,0.0001589,2]
[419321234,1775161840697,-151.0,0.0001589,2]
[419321235,1775161840707,-151.0,0.0001589,2]
[419321236,1775161840716,-151.0,0.0001589,2]
[419321237,1775161840725,-200.8,0.00015895,2]
[419321238,1775161840735,-500.0,0.00015898,2]
[419321239,1775161840744,-500.0,0.00015898,2]
[419321240,1775161840753,-500.0,0.00015898,2]
[419321241,1775161840762,-500.0,0.00015898,2]
[419321242,1775161840771,-500.0,0.00015898,2]
[419321243,1775161840780,-248.90831615,0.00015898,2]
[419321244,1775161840790,-500.0,0.00015898,2]
[419321245,1775161840799,-500.0,0.00015898,2]
[419321246,1775161840809,-500.0,0.00015898,2]
[419321247,1775161840818,-500.0,0.00015898,2]
[419321248,1775161840827,-608.77037005,0.00015898,2]
[419321249,1775161840836,-500.0,0.00015898,2]
[419321250,1775161840846,-195.05699266,0.00015898,2]
[419321251,1775161840855,-500.0,0.00015898,2]
[419321252,1775161840864,-268.66281508,0.00015898,2]
[419321253,1775161840874,-500.0,0.00015898,2]
[419321254,1775161840883,-263.73432277,0.00015898,2]
[419321255,1775161840893,-443.61429513,0.00015898,2]
[419321256,1775161840902,-586.70580197,0.00015898,2]
[419321257,1775161840911,-500.0,0.00015898,2]
[419321258,1775161840921,-500.0,0.00015898,2]
[419321259,1775161840930,-500.0,0.00015898,2]
[419321260,1775161840939,-500.0,0.00015898,2]
[419321261,1775161840948,-500.0,0.00015898,2]
[419321262,1775161840957,-500.0,0.00015898,2]
[419321263,1775161840966,-500.0,0.00015898,2]
[419321264,1775161840975,-500.0,0.00015898,2]
[419321265,1775161840985,-500.0,0.00015898,2]
[419321266,1775161840994,-500.0,0.00015898,2]
[419321267,1775161841003,-500.0,0.00015898,2]
[419321268,1775161841012,-500.0,0.00015898,2]
[419321269,1775161841022,-500.0,0.00015898,2]
[419321270,1775161841031,-500.0,0.00015898,2]
[419321271,1775161841040,-500.0,0.00015898,2]
[419321272,1775161841050,-386.62461072,0.00015898,2]
[419321273,1775161841059,-500.0,0.00015898,2]
[419321274,1775161841068,-500.0,0.00015898,2]
[419321275,1775161841077,-500.0,0.00015898,2]
[419321276,1775161841087,-500.0,0.00015898,2]
[419321277,1775161841096,-500.0,0.00015898,2]
[419321278,1775161841105,-500.0,0.00015898,2]
[419321279,1775161841115,-500.0,0.00015898,2]
[419321280,1775161841124,-80243.9446,0.000159,2]
[419321281,1775161841134,-26281.0044,0.000159,2]
[419321283,1775161841143,-1000.0,0.000159,2]
[419321285,1775161841152,-521.07230392,0.000159,2]
[419321287,1775161841162,-5000.0,0.000159,2]
[419321289,1775161841171,-6800.0,0.000159,5]
[419321291,1775161841180,-2709.32269998,0.00015916,2]
[419321292,1775161841189,-12978.52360884,0.00015916,2]
[419321294,1775161841199,-588.33024838,0.00015916,2]
[419321296,1775161841208,-379.65946726,0.00015916,2]
[419321298,1775161841219,-1218.51055261,0.00015916,2]
[419321300,1775161841229,-309.44064142,0.00015984,2]
[419321302,1775161841239,-161.37293318,0.00015984,2]
[419321304,1775161841248,-267.42124873,0.00015984,2]
[419321306,1775161841257,-365.94666867,0.0001599,2]
[419321308,1775161841267,-666.0,0.00015999,2]
[419321310,1775161841276,-666.0,0.00015999,2]
[419321312,1775161841286,-500.0,0.00015999,2]
[419321314,1775161841295,-508.65862639,0.00015999,2]
[419321316,1775161841305,-500.0,0.00015999,2]
[419321318,1775161841314,-500.0,0.00015999,2]
[419321320,1775161841323,-500.0,0.00015999,2]
[419321322,1775161841332,-500.0,0.00015999,2]
[419321324,1775161841342,-500.0,0.00015999,2]
[419321326,1775161841351,-500.0,0.00015999,2]
[419321328,1775161841360,-500.0,0.00015999,2]
[419321330,1775161841370,-500.0,0.00015999,2]
[419321332,1775161841379,-500.0,0.00015999,2]
[419321334,1775161841389,-500.0,0.00015999,2]
[419321336,1775161841397,-500.0,0.00015999,2]
[419321338,1775161841406,-500.0,0.00015999,2]
[419321340,1775161841415,-500.0,0.00015999,2]
[419321342,1775161841424,-500.0,0.00015999,2]
[419321344,1775161841434,-500.0,0.00015999,2]
[419321346,1775161841444,-500.0,0.00015999,2]
[419321348,1775161841453,-500.0,0.00015999,2]
[419321350,1775161841462,-636.31,0.00015999,2]
[419321352,1775161841471,-500.0,0.00015999,2]
[419321354,1775161841480,-500.0,0.00015999,2]
[419321356,1775161841489,-500.0,0.00015999,2]
[419321358,1775161841497,-500.0,0.00015999,2]
[419321360,1775161841506,-500.0,0.00015999,2]
[419321362,1775161841515,-500.0,0.00015999,2]
[419321364,1775161841524,-500.0,0.00015999,2]
[419321366,1775161841534,-500.0,0.00015999,2]
[419321368,1775161841544,-500.0,0.00015999,2]
[419321370,1775161841553,-500.0,0.00015999,2]
[419321372,1775161841562,-500.0,0.00015999,2]
[419321374,1775161841573,-500.0,0.00015999,2]
[419321376,1775161841583,-500.0,0.00015999,2]
[419321378,1775161841592,-500.0,0.00015999,2]
[419321379,1775161841603,-505.44111884,0.00015999,2]
[419321382,1775161841614,-326.53989584,0.00015999,2]
[419321384,1775161841623,-500.0,0.00015999,2]
[419321386,1775161841632,-500.0,0.00015999,2]
[419321388,1775161841642,-606.05812875,0.00015999,2]
[419321390,1775161841651,-227.95304474,0.00015999,2]
[419321392,1775161841661,-159.56713131,0.00015999,2]
[419321393,1775161841670,-500.0,0.00015999,2]
[419321395,1775161841679,-260.86825676,0.00015999,2]
[419321397,1775161841688,-500.0,0.00015999,2]
[419321399,1775161841698,-150.0,0.00016,2]
[419321401,1775161841707,-28410.89821483,0.00016,2]
[419321418,1775161841926,-198.39010278,0.00015916,2]
[419321419,1775161841936,-138.08592581,0.00016,2]
[419321436,1775161842779,-1203.55824115,0.00016,2]
[419321437,1775161842792,-681.76212011,0.00016,2]
[419321503,1775161844170,-35577.24216522,0.00016,2]
[419321507,1775161844198,-5315.1,0.00016,2]
[419321511,1775161844232,-4069.77402337,0.00016,2]
[419321514,1775161844251,-1250.10506771,0.00016,2]
[419321516,1775161844263,-3092.68315898,0.00016,2]
[419321519,1775161844274,-180687.56689237,0.00016,2]
[419321670,1775161845683,-176.23,0.00014066,2]
[419321672,1775161845692,-211.142,0.00016,2]
[419321675,1775161845709,-580.13076346,0.00016,2]
[419321681,1775161845762,-327.77785092,0.00016,2]
[419321703,1775161846038,-242827.6138857,0.00016,2]
[419322507,1775163032141,-1737.83248956,0.000131,2]
[419322508,1775163032150,-504.0,0.00013111,2]
[419322510,1775163032159,-195.0,0.00013807,2]
[419322512,1775163032168,-195.0,0.00013807,2]
[419322514,1775163032178,-273.9,0.00013837,2]
[419322516,1775163032186,-151.0,0.0001398,2]
[419322518,1775163032196,-235.89,0.00013985,2]
[419322520,1775163032205,-40.19839222,0.00013985,2]
[419322522,1775163032217,-110.80160778,0.00013985,2]
[419322524,1775163032226,-500.0,0.0001415,2]
[419322526,1775163032235,-1200.0,0.00014281,2]
[419322528,1775163032244,-248.41,0.00014282,2]
[419322530,1775163032254,-3240.0,0.00014326,2]
[419322532,1775163032263,-500.0,0.0001436,2]
[419322534,1775163032271,-467.931904,0.00014363,2]
[419322536,1775163032280,-3117.32303089,0.00014373,2]
[419322538,1775163032291,-304.88341507,0.00014373,2]
[419322543,1775163032324,-626.10704283,0.00014373,2]
[419322545,1775163032339,-3329.86872731,0.00014373,2]
[419322565,1775163032512,-300.0,0.00014373,2]
[419322589,1775163033148,-2492321.8177839,0.00014373,2]
[419322590,1775163033158,-500.0,0.00014373,2]
[419322591,1775163033168,-421.67237584,0.00014373,2]
[419322592,1775163033177,-500.0,0.00014373,2]
[419322593,1775163033187,-189.84,0.00014384,2]
[419322594,1775163033196,-150.0,0.000144,2]
[419322595,1775163033205,-150.0,0.000144,2]
[419322596,1775163033216,-150.0,0.000144,2]
[419322597,1775163033226,-150.0,0.000144,2]
[419322598,1775163033235,-150.0,0.00014421,2]
[419322599,1775163033244,-600.0,0.00014422,2]
[419322600,1775163033253,-2500.0,0.00014422,2]
[419322601,1775163033262,-2500.0,0.00014422,2]
[419322602,1775163033271,-2500.0,0.00014422,2]
[419322603,1775163033280,-2500.0,0.00014422,2]
[419322604,1775163033289,-2500.0,0.00014422,2]
[419322605,1775163033298,-195.0,0.00014422,2]
[419322606,1775163033307,-611.94845348,0.00014441,2]
[419322607,1775163033316,-346.39107811,0.00014454,2]
[419322608,1775163033325,-163.69322686,0.00014473,2]
[419322609,1775163033335,-500.0,0.00014473,2]
[419322610,1775163033344,-500.0,0.00014473,2]
[419322611,1775163033353,-500.0,0.00014473,2]
[419322612,1775163033362,-500.0,0.00014473,2]
[419322613,1775163033372,-500.0,0.00014475,2]
[419322614,1775163033381,-200.0,0.00014475,2]
[419322615,1775163033390,-500.0,0.00014475,2]
[419322616,1775163033400,-500.0,0.00014475,2]
[419322617,1775163033408,-500.0,0.00014475,2]
[419322618,1775163033418,-500.0,0.00014475,2]
[419322619,1775163033427,-500.0,0.00014475,2]
[419322620,1775163033436,-500.0,0.00014475,2]
[419322621,1775163033446,-500.0,0.00014475,2]
[419322622,1775163033455,-500.0,0.00014475,2]
[419322623,1775163033464,-500.0,0.00014475,2]
[419322624,1775163033474,-151.0,0.00014475,2]
[419322625,1775163033483,-500.0,0.00014475,2]
[419322626,1775163033492,-151.0,0.00014475,2]
[419322627,1775163033502,-151.0,0.00014475,2]
[419322628,1775163033511,-151.0,0.00014475,2]
[419322629,1775163033521,-151.0,0.00014475,2]
[419322630,1775163033530,-151.0,0.00014475,2]
[419322631,1775163033540,-500.0,0.00014475,2]
[419322632,1775163033549,-151.0,0.00014475,2]
[419322633,1775163033558,-151.0,0.00014475,2]
[419322634,1775163033568,-500.0,0.00014475,2]
[419322635,1775163033577,-151.0,0.00014475,2]
[419322636,1775163033586,-500.0,0.00014475,2]
[419322637,1775163033595,-151.0,0.00014475,2]
[419322638,1775163033605,-500.0,0.00014475,2]
[419322639,1775163033614,-151.0,0.00014475,2]
[419322640,1775163033624,-500.0,0.00014475,2]
[419322641,1775163033635,-151.0,0.00014475,2]
[419322642,1775163033646,-500.0,0.00014475,2]
[419322643,1775163033655,-151.0,0.00014475,2]
[419322644,1775163033664,-500.0,0.00014475,2]
[419322645,1775163033674,-151.0,0.00014475,2]
[419322646,1775163033683,-500.0,0.00014475,2]
[419322647,1775163033693,-151.0,0.00014475,2]
[419322648,1775163033703,-500.0,0.00014475,2]
[419322649,1775163033714,-151.0,0.00014475,2]
[419322650,1775163033725,-151.0,0.00014475,2]
[419322651,1775163033734,-500.0,0.00014475,2]
[419322652,1775163033743,-151.0,0.00014475,2]
[419322653,1775163033753,-254.87611091,0.00014475,2]
[419322654,1775163033764,-151.0,0.00014475,2]
[419322655,1775163033774,-170.48245131,0.00014475,2]
[419322656,1775163033784,-151.0,0.00014475,2]
[419322657,1775163033793,-151.0,0.00014475,2]
[419322658,1775163033803,-151.0,0.00014475,2]
[419322659,1775163033812,-151.0,0.00014475,2]
[419322660,1775163033822,-151.0,0.00014475,2]
[419322661,1775163033832,-151.0,0.00014475,2]
[419322662,1775163033842,-151.0,0.00014475,2]
[419322663,1775163033852,-151.0,0.00014475,2]
[419322664,1775163033861,-151.0,0.00014475,2]
[419322665,1775163033870,-151.0,0.00014475,2]
[419322666,1775163033879,-151.0,0.00014475,2]
[419322667,1775163033888,-151.0,0.00014475,2]
[419322668,1775163033897,-58771.42,0.00014483,2]
[419322669,1775163033906,-4172.5323,0.00014535,2]
[419322670,1775163033915,-2000.0,0.00014541,2]
[419322671,1775163033924,-262.0,0.00014547,2]
[419322672,1775163033933,-1810.0,0.00014575,2]
[419322673,1775163033942,-441.0,0.00014576,2]
[419322674,1775163033951,-426.00412993,0.00014604,2]
[419322675,1775163033960,-303.0,0.00014605,2]
[419322676,1775163033969,-3476.69655626,0.00014635,2]
[419322677,1775163037898,-943.95867498,0.00014635,2]
[419322679,1775163040659,-271.44092731,0.00014635,2]
[419322680,1775163040692,-500.0,0.00014372,2]
[419322681,1775163040701,-1327.21868921,0.00014635,2]
[419322682,1775163040713,-308.5174995,0.00014635,2]
[419322683,1775163040757,-903.93718342,0.00014635,2]
[419322684,1775163040770,-7014.35046932,0.00014635,2]
[419322685,1775163040780,-500.0,0.00014748,2]
[419322686,1775163040791,-1000.0,0.00015021,2]
[419322687,1775163040801,-1000.0,0.00015021,2]
[419322688,1775163040810,-1000.0,0.00015021,2]
[419322689,1775163040820,-411.03320816,0.00015022,2]
[419322690,1775163040829,-200.0,0.00015023,2]
[419322691,1775163040838,-157.99,0.00015044,2]
[419322692,1775163040850,-800.0,0.00015068,2]
[419322693,1775163040859,-150.0,0.00015132,2]
[419322694,1775163040870,-150.0,0.000152,2]
[419322695,1775163040879,-150.0,0.000152,2]
[419322696,1775163040889,-150.0,0.000152,2]
[419322697,1775163040899,-150.0,0.000153,2]
[419322698,1775163040909,-2500.0,0.00015307,2]
[419322699,1775163040919,-640.8876646,0.0001532,2]
[419322700,1775163040928,-373.46956427,0.0001532,2]
[419322701,1775163040937,-532.9299,0.00015406,2]
[419322703,1775163040948,-500.0,0.00015406,2]
[419322704,1775163040957,-500.0,0.00015406,2]
[419322705,1775163040966,-500.0,0.00015406,2]
[419322706,1775163040976,-500.0,0.00015406,2]
[419322707,1775163040986,-500.0,0.00015406,2]
[419322708,1775163040997,-500.0,0.00015406,2]
[419322710,1775163041007,-500.0,0.00015406,2]
[419322711,1775163041017,-268.66281508,0.00015406,2]
[419322712,1775163041028,-500.0,0.00015406,2]
[419322713,1775163041039,-500.0,0.00015406,2]
[419322714,1775163041049,-500.0,0.00015406,2]
[419322715,1775163041060,-608.77037005,0.00015406,2]
[419322716,1775163041070,-500.0,0.00015406,2]
[419322717,1775163041081,-195.05699266,0.00015406,2]
[419322718,1775163041093,-500.0,0.00015406,2]
[419322719,1775163041103,-443.61429513,0.00015406,2]
[419322720,1775163041112,-586.70580197,0.00015406,2]
[419322721,1775163041123,-500.0,0.00015406,2]
[419322722,1775163041133,-500.0,0.00015406,2]
[419322723,1775163041143,-500.0,0.00015406,2]
[419322724,1775163041153,-500.0,0.00015406,2]
[419322725,1775163041162,-500.0,0.00015406,2]
[419322726,1775163041172,-500.0,0.00015406,2]
[419322727,1775163041181,-500.0,0.00015406,2]
[419322728,1775163041191,-500.0,0.00015406,2]
[419322729,1775163041201,-500.0,0.00015406,2]
[419322730,1775163041210,-500.0,0.00015406,2]
[419322731,1775163041220,-328.0840811,0.00015406,2]
[419322732,1775163041269,-171.9159189,0.00015406,2]
[419322733,1775163041278,-210.21760544,0.00015406,2]
[419322734,1775163041288,-500.0,0.00015406,2]
[419322735,1775163041298,-500.0,0.00015406,2]
[419322736,1775163041308,-500.0,0.00015406,2]
[419322737,1775163041317,-500.0,0.00015406,2]
[419322738,1775163041328,-500.0,0.00015406,2]
[419322739,1775163041337,-500.0,0.00015406,2]
[419322740,1775163041437,-217.86647566,0.00015406,2]
[419322741,1775163041449,-282.13352434,0.00015406,2]
[419322742,1775163041458,-500.0,0.00015406,2]
[419322743,1775163041467,-500.0,0.00015406,2]
[419322744,1775163041477,-500.0,0.00015406,2]